bitfinex/quotes_BTCUSD_20230118
["timestamp","ask_amount","ask_price","bid_price","bid_amount"]
[1674060577800,0.97383766,20550.0,20545.0,0.19576859]
[1674060578030,0.39444721,20554.0,20546.0,0.18394859]
[1674060578031,0.51953399,20554.0,20546.0,0.18394859]
[1674060578306,1.12374004,20553.0,20547.0,0.18394859]
[1674060578564,2.75837073,20552.0,20547.0,0.18394859]
[1674060578832,1.53803304,20551.0,20544.0,0.1182]
[1674060579131,0.1185,20548.0,20544.0,0.1182]
[1674060579348,1.45161504,20547.0,20544.0,0.1182]
[1674060579612,1.30256404,20546.0,20544.0,0.1182]
[1674060579863,1.08238669,20548.0,20544.0,0.1182]
[1674060579864,0.322414,20545.0,20544.0,0.1182]
[1674060580120,0.1185,20548.0,20544.0,0.1182]
[1674060580121,0.2529,20548.0,20544.0,0.1182]
[1674060580367,0.2529,20548.0,20544.0,0.30214859]
[1674060580629,0.1185,20548.0,20544.0,0.30214859]
[1674060580872,0.97389609,20547.0,20544.0,0.1182]
[1674060581117,0.483314,20546.0,20544.0,0.1182]
[1674060581369,1.29568709,20545.0,20544.0,0.1182]
[1674060582380,0.97389609,20545.0,20544.0,0.1182]
[1674060582877,0.97389609,20545.0,20544.0,0.13002]
[1674060583140,0.97389609,20545.0,20544.0,0.1182]
[1674060583141,0.97387023,20545.0,20544.0,0.1182]
[1674060583386,0.15,20551.0,20544.0,0.62594259]
[1674060583637,0.97375323,20550.0,20545.0,0.82296359]
[1674060583947,0.97375323,20549.0,20546.0,0.59112395]
[1674060584255,0.97375323,20548.0,20547.0,0.96678959]
[1674060584473,0.97375323,20548.0,20547.0,0.77309025]
[1674060584996,0.03299999,20554.0,20547.0,0.632841]
[1674060585254,0.97362779,20553.0,20548.0,0.18394859]
[1674060585518,0.97362779,20553.0,20549.0,0.51412759]
[1674060585764,0.97362779,20553.0,20546.0,0.60314326]
[1674060585765,0.97362779,20553.0,20550.0,0.87895635]
[1674060586050,0.97362779,20553.0,20551.0,0.332396]
[1674060586312,0.97362779,20553.0,20552.0,0.79161]
[1674060586610,0.97362779,20553.0,20552.0,0.49161]
[1674060587059,0.03299999,20554.0,20552.0,0.79161]
[1674060587326,0.03299999,20554.0,20553.0,0.731164]
[1674060587589,1.00634997,20554.0,20553.0,0.731164]
[1674060588656,1.00634997,20554.0,20553.0,0.721164]
[1674060588923,1.00634997,20554.0,20553.0,0.65599322]
[1674060589997,1.00634997,20554.0,20550.0,0.05141276]
[1674060590252,1.16767095,20553.0,20545.0,0.4522814]
[1674060590545,1.16767095,20552.0,20546.0,0.318911]
[1674060590920,1.16767095,20551.0,20547.0,0.30908]
[1674060591178,1.16767095,20550.0,20548.0,0.321412]
[1674060591431,0.97334998,20549.0,20543.0,0.01428908]
[1674060591680,0.19432097,20548.0,20543.0,0.13520516]
[1674060591930,1.16767095,20547.0,20544.0,0.316288]
[1674060592377,0.14266,20551.0,20545.0,0.319499]
[1674060592644,0.97351986,20550.0,20546.0,0.21589849]
[1674060592913,0.03299999,20554.0,20547.0,1.00196728]
[1674060593187,0.97341949,20553.0,20548.0,1.60466442]
[1674060593472,0.97341949,20553.0,20549.0,0.66729369]
[1674060593762,0.97341949,20553.0,20550.0,0.611091]
[1674060594020,0.97341949,20553.0,20551.0,0.33848]
[1674060594284,0.97341949,20553.0,20544.0,0.25997488]
[1674060594285,0.97341949,20553.0,20544.0,0.30102314]
[1674060594541,0.19432097,20552.0,20544.0,0.18394859]
[1674060595050,1.16774046,20551.0,20545.0,0.11466242]
[1674060595308,0.97341949,20550.0,20546.0,0.18394859]
[1674060595580,0.97341949,20550.0,20547.0,0.80648969]
[1674060595849,0.97341949,20549.0,20548.0,0.343616]
[1674060596116,0.03299999,20554.0,20549.0,0.08208177]
[1674060596370,0.03299999,20554.0,20550.0,0.471877]
[1674060596371,0.97344745,20553.0,20550.0,0.471877]
[1674060596628,0.97344745,20553.0,20551.0,0.631684]
[1674060596885,0.97344745,20553.0,20551.0,0.40137658]
[1674060597141,0.97344745,20553.0,20552.0,0.332092]
[1674060597435,0.97344745,20553.0,20552.0,0.3]
[1674060597656,0.97344745,20553.0,20545.0,0.2899717]
[1674060597919,0.15,20551.0,20543.0,0.01428908]
[1674060598176,1.16776842,20550.0,20543.0,0.72902438]
[1674060598431,1.16776842,20549.0,20544.0,0.336273]
[1674060598737,1.16776842,20548.0,20543.0,0.01428908]
[1674060598971,0.97344745,20547.0,20543.0,0.19823767]
[1674060599226,1.16776842,20547.0,20544.0,0.34488877]
[1674060599493,0.14378,20553.0,20544.0,0.34488877]
[1674060599494,0.03299999,20554.0,20545.0,0.445574]
[1674060599750,0.97353377,20553.0,20546.0,0.99866128]
[1674060600065,0.97353377,20553.0,20547.0,0.62874372]
[1674060600324,0.97353377,20553.0,20548.0,0.50561459]
[1674060600580,1.16785474,20553.0,20549.0,0.322592]
[1674060600839,0.97353377,20552.0,20544.0,0.01982377]
[1674060601116,0.97353377,20551.0,20544.0,0.01982377]
[1674060601419,0.97045385,20554.0,20544.0,0.01982377]
[1674060601420,0.97353377,20550.0,20544.0,0.01982377]
[1674060601686,1.64505643,20549.0,20544.0,0.335805]
[1674060601944,1.64505643,20548.0,20543.0,0.01428908]
[1674060602205,1.96348943,20547.0,20543.0,0.01428908]
[1674060602466,1.32023777,20546.0,20543.0,0.01428908]
[1674060602948,1.29688877,20545.0,20543.0,0.01428908]
[1674060603221,0.14036,20551.0,20543.0,0.01428908]
[1674060603501,0.486647,20549.0,20544.0,0.18394859]
[1674060603772,1.97221994,20548.0,20543.0,0.01428908]
[1674060604062,2.38070994,20547.0,20543.0,0.01428908]
[1674060604330,2.95077494,20546.0,20543.0,0.01428908]
[1674060604588,2.51634352,20545.0,20543.0,0.01428908]
[1674060604865,0.0014289,20542.0,20539.0,5.0]
[1674060605135,2.46965294,20541.0,20539.0,5.0]
[1674060605402,1.30013628,20540.0,20539.0,5.0]
[1674060605660,0.0014289,20542.0,20539.0,5.0]
[1674060605921,0.0014289,20542.0,20540.0,0.462978]
[1674060606189,0.0014289,20542.0,20541.0,0.310448]
[1674060606944,0.0014289,20542.0,20539.0,5.0]
[1674060606945,0.0014289,20542.0,20540.0,0.15]
[1674060607456,0.0014289,20542.0,20539.0,5.0]
[1674060607715,0.0014289,20542.0,20540.0,0.18394859]
[1674060607981,0.0014289,20542.0,20541.0,0.323218]
[1674060608232,0.0014289,20542.0,20541.0,0.473218]
[1674060609075,0.0014289,20542.0,20541.0,0.773218]
[1674060610675,8.9e-06,20542.0,20541.0,1.25041969]
[1674060610956,8.9e-06,20542.0,20541.0,1.43436828]
[1674060611229,8.9e-06,20542.0,20541.0,1.5345126]
[1674060611500,8.9e-06,20542.0,20541.0,1.2911126]
[1674060612291,8.9e-06,20542.0,20541.0,1.40741748]
[1674060612555,8.9e-06,20542.0,20541.0,1.36672457]
[1674060612815,8.9e-06,20542.0,20541.0,0.93021579]
[1674060613384,8.9e-06,20542.0,20541.0,0.81391091]
[1674060613917,8.9e-06,20542.0,20541.0,0.323218]
[1674060614178,1.27465745,20549.0,20541.0,0.3232849]
[1674060614437,0.13964342,20550.0,20542.0,0.35113]
[1674060614964,0.13964342,20550.0,20541.0,6.69e-05]
[1674060615477,0.97371356,20549.0,20541.0,6.69e-05]
[1674060615733,0.15,20547.0,20541.0,6.69e-05]
[1674060616003,1.31292756,20546.0,20539.0,5.0]
[1674060616255,0.15,20547.0,20539.0,5.0]
[1674060616514,0.30102314,20548.0,20539.0,5.0]
[1674060616779,0.15,20545.0,20539.0,5.0]
[1674060617032,0.1421,20546.0,20539.0,5.0]
[1674060617302,0.97389142,20545.0,20539.0,5.0]
[1674060617803,0.486701,20547.0,20540.0,0.15]
[1674060618062,0.97386441,20546.0,20539.0,5.0]
[1674060618320,0.97386441,20545.0,20539.0,5.0]
[1674060618668,0.60282565,20549.0,20539.0,5.0]
[1674060618897,0.97378422,20548.0,20540.0,0.465929]
[1674060619167,0.97378422,20547.0,20540.0,0.15]
[1674060619429,0.13418,20550.0,20541.0,0.353946]
[1674060619682,0.97373736,20549.0,20542.0,0.789729]
[1674060619962,0.97373736,20548.0,20542.0,0.45]
[1674060620216,1.21478265,20553.0,20542.0,0.19069291]
[1674060620480,0.97359975,20552.0,20543.0,0.62754392]
[1674060620739,0.19432097,20551.0,20544.0,0.97056559]
[1674060621002,0.19432097,20550.0,20545.0,0.50763559]
[1674060621308,0.39235265,20553.0,20546.0,0.340708]
[1674060621572,0.39235265,20553.0,20547.0,0.3]
[1674060621573,0.97364337,20552.0,20547.0,0.3]
[1674060622110,0.97364337,20551.0,20547.0,0.3]
[1674060622374,0.32225283,20554.0,20547.0,0.3]
[1674060622375,0.03299999,20554.0,20547.0,0.3]
[1674060622863,0.973531,20553.0,20549.0,0.15]
[1674060623123,0.973531,20553.0,20550.0,0.325245]
[1674060623404,0.03299999,20554.0,20549.0,0.15]
[1674060623405,0.03299999,20554.0,20551.0,0.617066]
[1674060623661,0.03299999,20554.0,20552.0,0.334919]
[1674060623971,0.03299999,20554.0,20549.0,0.3]
[1674060624180,0.97348756,20553.0,20549.0,0.3]
[1674060624722,0.03299999,20554.0,20550.0,0.344441]
[1674060624977,0.03299999,20554.0,20551.0,0.627305]
[1674060625253,0.03299999,20554.0,20551.0,0.3]
[1674060625504,0.03299999,20554.0,20547.0,0.3]
[1674060625779,0.97346098,20553.0,20547.0,0.3]
[1674060626046,0.03299999,20554.0,20548.0,0.330601]
[1674060626302,0.03299999,20554.0,20547.0,0.3]
[1674060626303,0.03299999,20554.0,20549.0,0.768601]
[1674060626779,0.03299999,20554.0,20550.0,0.324475]
[1674060626782,0.03299999,20554.0,20550.0,0.624475]
[1674060627043,0.03299999,20554.0,20551.0,0.312141]
[1674060627318,0.03299999,20554.0,20552.0,0.3]
[1674060627573,0.03299999,20554.0,20550.0,0.3]
[1674060628089,0.9734731,20553.0,20550.0,0.3]
[1674060628344,0.9734731,20553.0,20543.0,0.04190342]
[1674060628598,0.15,20552.0,20542.0,0.15]
[1674060628854,0.9734731,20551.0,20540.0,0.26630488]
[1674060629150,1.27449624,20551.0,20540.0,0.15]
[1674060629374,0.40768265,20552.0,20540.0,0.15]
[1674060629375,0.9734731,20550.0,20540.0,0.15]
[1674060629632,0.2915,20552.0,20541.0,0.339992]
[1674060629633,0.9734731,20549.0,20541.0,0.339992]
[1674060629913,0.1415,20552.0,20542.0,0.338859]
[1674060630169,1.1679371,20551.0,20543.0,0.64167359]
[1674060630640,0.19432097,20551.0,20544.0,0.50890759]
[1674060630643,0.19432097,20551.0,20545.0,0.15]
[1674060630897,0.13292,20554.0,20546.0,0.29755952]
[1674060631154,0.97353264,20553.0,20547.0,0.49975359]
[1674060631408,1.16785361,20553.0,20548.0,0.24528504]
[1674060631661,0.97353264,20552.0,20548.0,0.18394859]
[1674060631920,0.329728,20551.0,20543.0,0.15]
[1674060632174,0.97353264,20552.0,20540.0,0.15]
[1674060632175,1.28528364,20550.0,20540.0,0.15]
[1674060632441,0.36739116,20553.0,20541.0,0.95235858]
[1674060632442,0.19432097,20549.0,20541.0,0.95235858]
[1674060632693,0.19432097,20548.0,20542.0,0.50838642]
[1674060632970,0.19432097,20547.0,20543.0,0.92852385]
[1674060633204,0.28925284,20554.0,20543.0,0.92852385]
[1674060633205,0.41720579,20554.0,20544.0,0.333967]
[1674060633453,1.16787668,20553.0,20545.0,0.50644759]
[1674060633715,0.97355571,20552.0,20546.0,0.95603959]
[1674060633979,0.97355571,20552.0,20547.0,0.62449289]
[1674060634347,0.50551025,20556.0,20547.0,0.62449289]
[1674060634348,0.28925284,20556.0,20548.0,0.80117459]
[1674060634528,0.28925284,20557.0,20548.0,0.80117459]
[1674060634789,1.16778703,20556.0,20549.0,0.75694748]
[1674060635064,0.97346606,20555.0,20550.0,0.48394859]
[1674060635337,0.97346606,20555.0,20551.0,0.10687508]
[1674060635604,0.97346606,20555.0,20551.0,0.29082367]
[1674060635887,0.97346606,20554.0,20551.0,0.18394859]
[1674060636142,0.97346606,20553.0,20548.0,0.3]
[1674060636402,0.19432097,20552.0,20550.0,0.03]
[1674060636656,0.34432097,20555.0,20551.0,0.324356]
[1674060636918,0.97346519,20554.0,20548.0,0.3]
[1674060637176,0.53614797,20553.0,20548.0,0.18394859]
[1674060637439,0.97346519,20552.0,20548.0,0.20234345]
[1674060637702,1.16778616,20552.0,20548.0,0.01839486]
[1674060637961,0.19432097,20552.0,20545.0,0.32580342]
[1674060638458,0.19432097,20551.0,20546.0,0.80251869]
[1674060638721,0.28925284,20556.0,20547.0,1.55490001]
[1674060638976,0.97346583,20555.0,20548.0,0.328664]
[1674060639231,1.1677868,20555.0,20549.0,0.57317966]
[1674060639510,1.1677868,20555.0,20550.0,0.48517859]
[1674060639511,0.97346583,20554.0,20550.0,0.48517859]
[1674060639744,0.19432097,20554.0,20551.0,0.337771]
[1674060640037,0.97345047,20553.0,20545.0,0.4509952]
[1674060640304,0.19432097,20552.0,20546.0,0.75186679]
[1674060640569,0.19432097,20551.0,20548.0,0.1411]
[1674060640877,0.57265709,20558.0,20549.0,0.33513]
[1674060640878,0.0054513,20558.0,20549.0,0.33513]
[1674060641134,0.97329579,20557.0,20551.0,0.6]
[1674060641407,0.0054513,20558.0,20552.0,1.29928326]
[1674060641668,0.0054513,20558.0,20553.0,1.35538859]
[1674060641932,0.0054513,20558.0,20554.0,0.99318926]
[1674060642221,0.0054513,20558.0,20556.0,0.15]
[1674060642485,0.0054513,20558.0,20557.0,0.337929]
[1674060642999,0.0054513,20558.0,20554.0,0.19404757]
[1674060643270,0.0054513,20558.0,20553.0,0.15]
[1674060643271,0.19977227,20558.0,20553.0,0.15]
[1674060643546,0.19977227,20558.0,20554.0,0.329304]
[1674060643798,0.19977227,20558.0,20555.0,0.3792574]
[1674060644076,0.0054513,20558.0,20556.0,0.615853]
[1674060644337,0.0054513,20558.0,20557.0,0.327608]
[1674060644601,0.17307019,20564.0,20558.0,0.15]
[1674060644903,0.97318219,20563.0,20559.0,0.52142157]
[1674060645169,0.97318219,20562.0,20560.0,0.3]
[1674060645465,0.38076025,20565.0,20560.0,0.3]
[1674060645727,0.38076025,20565.0,20560.0,0.19404757]
[1674060645728,0.97314278,20564.0,20560.0,0.19404757]
[1674060645982,0.316335,20563.0,20560.0,0.21345233]
[1674060646469,0.52603688,20566.0,20558.0,0.3]
[1674060646470,0.320971,20562.0,20558.0,0.3]
[1674060646472,0.36621025,20565.0,20560.0,0.19404757]
[1674060646728,0.97309926,20564.0,20561.0,0.18904756]
[1674060646987,0.00682631,20566.0,20562.0,0.04890476]
[1674060647236,0.97308462,20565.0,20563.0,0.18904756]
[1674060647496,0.32435,20564.0,20562.0,0.04890476]
[1674060647751,1.31073462,20563.0,20562.0,0.04890476]
[1674060648009,1.31074939,20563.0,20562.0,0.04890476]
[1674060648276,0.97309038,20563.0,20562.0,0.04890476]
[1674060648531,0.00682631,20566.0,20562.0,0.04890476]
[1674060648812,0.97303473,20565.0,20563.0,0.19393804]
[1674060649062,0.00682631,20566.0,20564.0,0.18904756]
[1674060649341,0.00682631,20566.0,20565.0,0.308375]
[1674060649602,0.00682631,20566.0,20564.0,0.3]
[1674060649860,0.20114728,20566.0,20560.0,6e-05]
[1674060650342,1.66061644,20565.0,20560.0,6e-05]
[1674060650616,1.6459941,20564.0,20560.0,6e-05]
[1674060650896,0.14579631,20566.0,20560.0,0.18910756]
[1674060651160,0.00682631,20566.0,20561.0,0.20795832]
[1674060651426,0.00682631,20566.0,20562.0,0.52796856]
[1674060651675,0.00682631,20566.0,20563.0,0.51377756]
[1674060651933,0.00682631,20566.0,20564.0,0.326783]
[1674060652181,0.00682631,20566.0,20565.0,0.627719]
[1674060655018,0.00682631,20566.0,20565.0,0.62778582]
[1674060655319,1.24e-05,20567.0,20566.0,0.15]
[1674060655532,1.24e-05,20567.0,20566.0,1.11012144]
[1674060655805,1.24e-05,20567.0,20566.0,1.41012144]
[1674060656080,1.24e-05,20567.0,20566.0,0.618898]
[1674060656350,0.24149337,20567.0,20566.0,0.318898]
[1674060656631,0.38359337,20567.0,20560.0,6e-05]
[1674060656883,0.56487431,20566.0,20560.0,6e-05]
[1674060657141,0.52711697,20565.0,20560.0,6e-05]
[1674060657398,0.52711697,20565.0,20553.0,1.08919]
[1674060657399,0.67175497,20564.0,20554.0,0.30026385]
[1674060657662,0.67175497,20564.0,20553.0,6e-05]
[1674060657663,0.82565679,20563.0,20553.0,6e-05]
[1674060657971,0.19432097,20562.0,20554.0,0.18904756]
[1674060658255,0.19432097,20562.0,20555.0,0.315182]
[1674060658510,1.07886882,20564.0,20556.0,0.18904756]
[1674060658511,0.19432097,20561.0,20556.0,0.18904756]
[1674060658781,0.15,20564.0,20557.0,0.35380976]
[1674060659035,0.15,20563.0,20558.0,0.52505556]
[1674060659333,1.24e-05,20567.0,20559.0,0.67577312]
[1674060659592,1.24e-05,20567.0,20563.0,0.1411]
[1674060659847,1.24e-05,20567.0,20564.0,0.325126]
[1674060660098,1.24e-05,20567.0,20565.0,0.81105956]
[1674060660362,1.24e-05,20567.0,20566.0,0.323018]
[1674060660840,6.352e-05,20573.0,20566.0,0.323018]
[1674060660841,0.2802624,20572.0,20566.0,0.323018]
[1674060661093,0.9726742,20571.0,20567.0,0.18904756]
[1674060661362,0.9726742,20571.0,20561.0,0.18904756]
[1674060661363,0.1416,20568.0,20561.0,0.18904756]
[1674060661617,0.1421,20565.0,20559.0,0.1182]
[1674060661893,0.339587,20564.0,20559.0,0.1182]
[1674060662140,0.01890475,20566.0,20559.0,0.1182]
[1674060662399,0.01890475,20566.0,20559.0,0.16246857]
[1674060662658,0.21322572,20566.0,20560.0,1.05448768]
[1674060662925,0.01890475,20566.0,20561.0,1.15043025]
[1674060663227,0.01890475,20566.0,20564.0,0.15]
[1674060663491,0.01890475,20566.0,20565.0,1.06487325]
[1674060663742,0.01890475,20566.0,20565.0,0.74289257]
[1674060664015,0.01890475,20566.0,20565.0,0.698624]
[1674060664271,0.01890475,20566.0,20565.0,1.22009426]
[1674060664549,0.01890475,20566.0,20565.0,1.36119426]
[1674060664812,0.01890475,20566.0,20565.0,1.17582569]
[1674060665327,0.01890475,20566.0,20565.0,1.70844187]
[1674060666098,0.01890475,20566.0,20565.0,1.59748943]
[1674060666353,0.01890475,20566.0,20565.0,1.40844187]
[1674060666620,0.01890475,20566.0,20565.0,1.65157187]
[1674060666874,6.352e-05,20573.0,20566.0,0.01889525]
[1674060667135,6.352e-05,20573.0,20569.0,0.24308]
[1674060667389,6.352e-05,20573.0,20570.0,1.44261006]
[1674060667660,6.352e-05,20573.0,20571.0,1.00339525]
[1674060667936,6.352e-05,20573.0,20572.0,1.32796769]
[1674060668195,6.352e-05,20573.0,20572.0,1.99734048]
[1674060668506,6.352e-05,20573.0,20572.0,1.75411113]
[1674060668778,0.00750328,20574.0,20572.0,1.75411113]
[1674060668779,6.68e-05,20574.0,20573.0,0.24482]
[1674060669039,6.68e-05,20574.0,20573.0,2.18408855]
[1674060669301,6.09e-06,20575.0,20574.0,0.09482]
[1674060669558,0.20547483,20579.0,20574.0,1.43631169]
[1674060670042,0.20547483,20579.0,20575.0,1.20132844]
[1674060670316,0.20547483,20579.0,20576.0,1.28429425]
[1674060670574,0.20405104,20579.0,20577.0,0.80209669]
[1674060670859,0.20405104,20579.0,20578.0,1.2331715]
[1674060671167,0.20405104,20579.0,20578.0,0.9331715]
[1674060671385,0.20405104,20579.0,20578.0,1.2331715]
[1674060671657,0.20405104,20579.0,20578.0,0.80022953]
[1674060671918,0.20405104,20579.0,20578.0,1.23323828]
[1674060672997,0.20405104,20579.0,20578.0,1.47620828]
[1674060673270,0.20405104,20579.0,20578.0,1.23323828]
[1674060673535,0.15818415,20588.0,20579.0,0.08146301]
[1674060674047,0.19432097,20587.0,20580.0,0.52183956]
[1674060674050,0.1421,20585.0,20580.0,0.52183956]
[1674060674307,0.53334497,20584.0,20574.0,6e-05]
[1674060674585,0.53334497,20584.0,20574.0,0.18910756]
[1674060674586,0.1421,20582.0,20574.0,0.18910756]
[1674060674843,0.1421,20582.0,20574.0,0.25006]
[1674060675114,0.52175697,20581.0,20574.0,0.43910756]
[1674060675483,0.19432097,20580.0,20575.0,0.23295832]
[1674060675736,0.19432097,20580.0,20575.0,0.18904756]
[1674060675994,0.19432097,20580.0,20576.0,0.331097]
[1674060676262,0.15,20583.0,20576.0,0.66624925]
[1674060676545,0.34432097,20583.0,20577.0,0.59823948]
[1674060676805,1.1634,20585.0,20578.0,0.18904756]
[1674060677068,0.00818415,20588.0,20579.0,1.12507325]
[1674060677336,0.00818415,20588.0,20580.0,1.59319083]
[1674060677603,0.20250512,20588.0,20581.0,1.00262425]
[1674060677866,0.19432097,20587.0,20582.0,0.320715]
[1674060678126,0.328823,20582.0,20579.0,0.25]
[1674060678400,0.335219,20581.0,20569.0,0.6]
[1674060678662,0.33582097,20580.0,20569.0,0.47720169]
[1674060678941,0.33582097,20580.0,20567.0,0.9009]
[1674060678942,0.33582097,20580.0,20572.0,0.25]
[1674060679185,0.34432097,20579.0,20573.0,0.21404756]
[1674060679449,0.19432097,20578.0,20572.0,0.25]
[1674060679723,0.19432097,20577.0,20573.0,0.025]
[1674060679988,0.19432097,20577.0,20574.0,0.318608]
[1674060680323,0.1415,20585.0,20575.0,0.313205]
[1674060680522,0.1415,20585.0,20576.0,1.00260425]
[1674060680780,0.15,20586.0,20577.0,0.99354725]
[1674060681035,0.34432097,20586.0,20578.0,1.10173998]
[1674060681296,0.15,20586.0,20579.0,1.29270125]
[1674060681557,0.15818415,20588.0,20580.0,0.65985768]
[1674060681865,0.15818415,20588.0,20582.0,6e-05]
[1674060681866,0.35220512,20588.0,20582.0,6e-05]
[1674060682117,0.35220512,20588.0,20583.0,0.336902]
[1674060682118,0.15788415,20588.0,20583.0,0.336902]
[1674060682364,0.15788415,20588.0,20584.0,0.52274376]
[1674060682627,0.15788415,20588.0,20584.0,0.18904756]
[1674060682899,0.1421,20586.0,20582.0,0.22076]
[1674060683148,0.325664,20585.0,20582.0,0.242836]
[1674060683400,0.15,20586.0,20582.0,0.22076]
[1674060683655,0.34432097,20586.0,20582.0,0.22076]
[1674060683912,0.29988415,20588.0,20582.0,0.22076]
[1674060684187,0.00788415,20588.0,20583.0,0.21112356]
[1674060684432,0.00788415,20588.0,20584.0,0.18904756]
[1674060684682,0.00788415,20588.0,20584.0,0.48904756]
[1674060684952,0.00788415,20588.0,20585.0,0.18894756]
[1674060685206,0.00788415,20588.0,20586.0,0.19889476]
[1674060685480,0.00788415,20588.0,20587.0,0.329143]
[1674060685731,0.00776415,20588.0,20587.0,0.81809057]
[1674060685993,0.00776415,20588.0,20587.0,1.15181784]
[1674060686245,0.00776415,20588.0,20587.0,0.82179821]
[1674060686514,0.00776415,20588.0,20587.0,0.92461615]
[1674060688354,0.00776415,20588.0,20587.0,1.40181784]
[1674060688619,0.00776415,20588.0,20587.0,0.92461615]
[1674060688872,0.00776415,20588.0,20587.0,0.62461615]
[1674060689135,0.24924512,20588.0,20587.0,0.25]
[1674060689438,0.39043215,20588.0,20587.0,0.25]
[1674060689662,0.39937415,20588.0,20579.0,0.3]
[1674060689918,0.19432097,20587.0,20580.0,0.52584406]
[1674060690186,0.09969437,20586.0,20581.0,0.473185]
[1674060690441,0.09969437,20585.0,20582.0,0.32952]
[1674060690687,0.00776415,20588.0,20583.0,0.326827]
[1674060690940,0.00776415,20588.0,20582.0,0.04983427]
[1674060691207,0.10745852,20588.0,20583.0,0.19432097]
[1674060691752,0.10745852,20588.0,20575.0,0.25]
[1674060691753,0.1416,20585.0,20575.0,0.25]
[1674060692050,0.1421,20580.0,20575.0,0.25]
[1674060692264,0.41574437,20579.0,20575.0,0.25]
[1674060692530,0.09969437,20578.0,20575.0,0.25]
[1674060692826,0.09969437,20577.0,20575.0,0.02626118]
[1674060693075,0.09969437,20577.0,20574.0,0.326512]
[1674060693615,0.09969437,20577.0,20574.0,0.36485176]
[1674060693619,0.09969437,20576.0,20574.0,0.326512]
[1674060693870,0.32219,20574.0,20573.0,0.01261181]
[1674060694130,0.43807437,20574.0,20573.0,0.01261181]
[1674060694388,0.43807437,20574.0,20573.0,1.181e-05]
[1674060694389,1.1011835,20574.0,20573.0,1.181e-05]
[1674060694653,0.327088,20573.0,20571.0,0.01244372]
[1674060694919,0.463872,20572.0,20571.0,0.01244372]
[1674060695181,1.11313624,20572.0,20571.0,0.01244372]
[1674060695445,1.04076806,20572.0,20566.0,0.03197969]
[1674060695728,1.122179,20573.0,20566.0,7.969e-05]
[1674060695729,0.1421,20567.0,20566.0,7.969e-05]
[1674060696006,0.39519237,20567.0,20565.0,0.01261181]
[1674060696249,0.480281,20566.0,20565.0,0.01261181]
[1674060696520,0.330281,20566.0,20565.0,0.01261181]
[1674060696773,0.1421,20567.0,20566.0,0.15]
[1674060697037,0.467418,20567.0,20565.0,0.01261181]
[1674060697313,0.136637,20566.0,20565.0,0.01261181]
[1674060697837,0.61383869,20566.0,20559.0,0.04427374]
[1674060698096,0.61383869,20566.0,20556.0,0.25]
[1674060698097,0.1421,20562.0,20556.0,0.25]
[1674060698356,0.09969437,20561.0,20557.0,1.07720169]
[1674060698661,0.09969437,20564.0,20561.0,0.20639989]
[1674060698901,0.44229642,20568.0,20562.0,0.334598]
[1674060699169,0.44229642,20568.0,20561.0,0.20639989]
[1674060699170,0.1421,20565.0,20561.0,0.20639989]
[1674060699424,0.349058,20564.0,20561.0,0.20639989]
[1674060699688,0.112897,20563.0,20561.0,0.20639989]
[1674060699981,0.1421,20565.0,20561.0,0.22703988]
[1674060700213,0.1416,20568.0,20562.0,0.50836997]
[1674060700474,0.09969437,20568.0,20563.0,0.51771697]
[1674060700733,0.1421,20571.0,20564.0,0.52213897]
[1674060700980,0.1421,20569.0,20565.0,0.49432097]
[1674060701256,0.1421,20569.0,20562.0,0.25]
[1674060701257,0.468291,20568.0,20562.0,0.25]
[1674060701504,0.468291,20568.0,20561.0,0.20639989]
[1674060701505,0.1421,20564.0,20561.0,0.20639989]
[1674060701803,0.1421,20564.0,20563.0,0.0437]
[1674060701804,0.43314042,20564.0,20563.0,0.0437]
[1674060702063,1.302279,20562.0,20561.0,0.02849989]
[1674060702315,0.15,20561.0,20556.0,0.01376002]
[1674060702616,0.23203837,20560.0,20556.0,0.01376002]
[1674060702839,0.69751037,20559.0,20556.0,0.01376002]
[1674060703085,0.155639,20558.0,20556.0,0.01376002]
[1674060703333,0.306316,20557.0,20556.0,0.01376002]
[1674060703604,0.40601037,20557.0,20556.0,0.01376002]
[1674060703859,0.306316,20557.0,20556.0,0.01376002]
[1674060704873,0.15,20559.0,20556.0,0.01376002]
[1674060705175,0.140573,20557.0,20556.0,6.002e-05]
[1674060705387,0.140573,20557.0,20552.0,0.01376002]
[1674060705388,0.321382,20556.0,20552.0,0.01376002]
[1674060705653,0.24026737,20555.0,20552.0,0.01376002]
[1674060705907,0.319133,20554.0,20552.0,0.01376002]
[1674060706195,0.142822,20553.0,20545.0,0.15]
[1674060706503,0.09969437,20552.0,20547.0,0.04548554]
[1674060706715,0.09969437,20551.0,20545.0,0.34432097]
[1674060706969,0.15,20554.0,20546.0,0.04548554]
[1674060706970,0.09969437,20550.0,20546.0,0.04548554]
[1674060707221,0.42369437,20549.0,20544.0,0.01414015]
[1674060707465,0.137955,20548.0,20544.0,0.20846112]
[1674060707734,0.09969437,20547.0,20544.0,0.01414015]
[1674060707985,0.09969437,20546.0,20544.0,0.01414015]
[1674060708501,0.3,20551.0,20544.0,0.33819515]
[1674060708759,0.72689606,20550.0,20545.0,0.19432097]
[1674060709006,0.1415,20552.0,20546.0,0.19432097]
[1674060709261,0.27849,20558.0,20547.0,0.54464207]
[1674060709517,0.27849,20558.0,20545.0,1.2]
[1674060709518,0.486456,20557.0,20548.0,0.52328197]
[1674060709770,0.15,20556.0,20552.0,6e-05]
[1674060710035,0.15,20556.0,20553.0,0.19432097]
[1674060710285,0.317399,20555.0,20553.0,0.19432097]
[1674060710535,0.28766537,20554.0,20552.0,6e-05]
[1674060710789,0.467399,20553.0,20545.0,0.28362]
[1674060711049,0.24425037,20552.0,20546.0,0.10526156]
[1674060711323,0.09969437,20552.0,20547.0,0.53501097]
[1674060711610,0.09969437,20552.0,20548.0,0.40602625]
[1674060711836,0.09969437,20552.0,20549.0,0.613572]
[1674060712091,0.13306,20555.0,20548.0,0.04548554]
[1674060712353,0.23275437,20555.0,20549.0,0.19432097]
[1674060712619,0.33661731,20555.0,20550.0,0.19432097]
[1674060712876,0.1416,20554.0,20548.0,0.19432097]
[1674060713172,0.72342494,20555.0,20545.0,0.17953605]
[1674060713430,0.72342494,20555.0,20545.0,0.04573605]
[1674060713431,0.486575,20552.0,20545.0,0.04573605]
[1674060713687,0.38427437,20551.0,20544.0,0.01414015]
[1674060713941,0.43954937,20550.0,20544.0,0.01414015]
[1674060714207,0.09969437,20549.0,20544.0,0.20846112]
[1674060714451,0.486575,20552.0,20544.0,0.20846112]
[1674060714452,0.09969437,20548.0,20545.0,0.02679572]